[Event "26th Triest Festival 2024"]
[Site "Triest"]
[Date "2024.09.02"]
[Round "3.11"]
[White "Schnaider, Ilan"]
[Black "Kanyamarala, Trisha"]
[Result "1/2-1/2"]
[Annotator "TA"]
[ECO "D00"]
[WhiteElo "2409"]
[BlackElo "2179"]
[PlyCount "157"]
[EventDate "2024.09.02"]
[EventType "swiss"]
[EventCountry "ITA"]
[SourceTitle "playchess.com"]
[Source "ChessBase"]
[SourceQuality "1"]
[TimeControl "5400+30"]

{[%evp 32,157,54,0,23,38,71,52,110,62,170,125,118,106,110,101,116,97,94,88,105,70,79,67,63,51,46,54,53,49,73,57,54,47,56,34,61,35,38,36,45,35,43,39,56,31,44,48,40,21,70,71,66,40,52,0,0,0,0,1,0,0,0,0,0,0,0,0,0,0,0,0,0,0,15,0,0,0,8,8,8,8,8,8,8,8,8,8,8,8,8,8,8,0,0,0,0,0,0,0,0,0,0,0,0,0,0,0,0,0,0,0,0,0,0,0,0,0,0,0,0,0,0,0,0,0,0,0]} 1. d4 {[%emt 0:01:08]} Nf6 {[%emt 0:00:16]} 2. Nc3 {[%emt 0:00:13]} d5 {[%emt 0:01:44]} 3. Bf4 {[%emt 0:00:09]} e6 {[%emt 0:01:13]} 4. Nb5 {[%emt 0:00:15]} Bb4+ {[%emt 0:06:31]} 5. c3 {[%emt 0:00:06]} Ba5 {[%emt 0:01:08]} 6. a4 {[%emt 0:00:12]} a6 {[%emt 0:03:40]} 7. b4 {[%emt 0:00:12]} Bxb4 {[%emt 0:03:01]} 8. cxb4 {[%emt 0:00:55]} axb5 {[%emt 0:00:11]} 9. axb5 {[%emt 0:00:14]} Rxa1 {[%emt 0:00:13]} 10. Qxa1 {[%emt 0:00:01]} Qe7 {[%emt 0:09:12]} 11. Qb2 {[%emt 0:06:52]} O-O {[%emt 0:03:37]} 12. Nf3 {[%emt 0:04:49]} Bd7 {[%emt 0:09:20]} 13. e3 {[%emt 0:01:10]} Ne4 {[%emt 0:13:31]} 14. Bd3 {[%emt 0:15:30]} Qe8 {[%emt 0:01:59]} 15. Qe2 {[%emt 0:03:02]} Qe7 {[%emt 0:05:57]} 16. Qb2 {[%emt 0:05:08]} Qe8 {[%emt 0:01:12]} 17. Qe2 {[%emt 0:05:59]} Qe7 {[%emt 0:00:16]} 18. O-O {[%emt 0:01:39]} (18. Bxc7 $2 Qxb4+ 19. Nd2 Rc8 $19) 18... Rc8 {[%emt 0:08:46]} 19. Rc1 {[%emt 0:10:22]} c6 {[%emt 0:09:13]} ({Better is} 19... Be8 $1 $14) 20. Qb2 {[%emt 0:03:43]} (20. h3 $16) 20... Nd6 {[%emt 0:07:59]} ({Black should try} 20... Qd8 $14) 21. b6 {[%emt 0:02:06]} Be8 {[%emt 0:04:15]} 22. Qa3 {[%emt 0:05:54]} Nd7 {[%emt 0:02:07]} 23. Qa7 {[%emt 0:06:41]} f6 {[%emt 0:01:42]} 24. Bxd6 {[%emt 0:06:18]} Qxd6 {[%emt 0:00:07]} 25. Qxb7 {[%emt 0:00:04]} Rb8 {[%emt 0:00:29]} 26. Qxc6 {[%emt 0:00:53]} (26. Qc7 {feels hotter.} Qxb4 27. Rb1 Qc3 28. Bf1) 26... Qxc6 {[%emt 0:02:48]} 27. Rxc6 {[%emt 0:00:05]} Nxb6 {[%emt 0:01:16]} 28. Rc1 {[%emt 0:04:44]} Na4 {[%emt 0:01:05]} 29. Rb1 {[%emt 0:00:24]} Nc3 {[%emt 0:00:31]} 30. Rb2 $1 {[%emt 0:00:22]} Nd1 {[%emt 0:01:03]} 31. Rb3 {[%emt 0:06:22]} Ba4 {[%emt 0:00:25]} 32. Rb1 {[%emt 0:00:02]} Nc3 {[%emt 0:00:14]} 33. Rc1 {[%emt 0:00:06]} Na2 {[%emt 0:00:45]} 34. Ra1 {[%emt 0:00:56]} Nxb4 {[%emt 0:01:08]} 35. Bxh7+ {[%emt 0:00:20]} Kxh7 {[%emt 0:00:08]} 36. Rxa4 {[%emt 0:00:01]} Nd3 {[%emt 0:00:54]} 37. Ra1 {[%emt 0:00:45]} Rb2 {[%emt 0:00:06]} 38. Rf1 {[%emt 0:00:02]} g5 {[%emt 0:00:50]} 39. g4 {[%emt 0:00:46]} Kg6 {[%emt 0:00:12]} 40. Kg2 {[%emt 0:00:07]} e5 {[%emt 0:00:31]} (40... f5 $11) 41. dxe5 $1 $14 {[%emt 0:00:34]} fxe5 {[%emt 0:00:09]} 42. Kg3 {[%emt 0:00:23]} Kf6 $1 {[%emt 0:00:43]} 43. Ng1 {[%emt 0:01:30]} (43. h4 $1 $14 gxh4+ 44. Nxh4) 43... Nc5 $11 {[%emt 0:00:29]} 44. f3 {[%emt 0:04:16]} d4 {[%emt 0:00:19]} 45. exd4 {[%emt 0:01:19]} exd4 {[%emt 0:00:02]} 46. Nh3 {[%emt 0:00:05]} d3 {[%emt 0:00:31]} 47. Rd1 {[%emt 0:00:47]} d2 {[%emt 0:00:46]} 48. Kf2 {[%emt 0:00:47]} Rc2 {[%emt 0:01:14]} 49. Ke2 {[%emt 0:04:38]} Nb3 $1 {[%emt 0:00:10]} 50. Nf2 {[%emt 0:00:38]} Ke5 {[%emt 0:00:49]} 51. Ne4 {[%emt 0:01:30]} Kd4 {[%emt 0:00:13]} 52. Rb1 {[%emt 0:00:49]} Kc4 {[%emt 0:00:57]} 53. Rd1 {[%emt 0:00:22]} Kd4 {[%emt 0:00:13]} 54. Rb1 {[%emt 0:00:01]} Kc4 {[%emt 0:00:04]} 55. Ke3 {[%emt 0:01:00]} Ra2 {[%emt 0:01:09]} 56. Rd1 {[%emt 0:00:24]} (56. Nxg5 $2 {loses.} Nc1 57. Rb8 d1=Q $19 (57... d1=B $2 58. Rc8+ Kd5 59. Rxc1 $18)) 56... Ra3 {[%emt 0:00:30]} 57. Nxd2+ {[%emt 0:00:36]} Nxd2+ {[%emt 0:00:01]} 58. Kxd2 {[%emt 0:00:07]} Rxf3 {[%emt 0:00:09]} 59. Ke2 {[%emt 0:00:44]} Rh3 {[%emt 0:00:13]} 60. Rd8 {[%emt 0:00:12]} Rxh2+ {[%emt 0:00:39]} 61. Kf3 {[%emt 0:00:00]} Rh1 {[%emt 0:00:44]} 62. Kf2 {[%emt 0:01:08]} Ra1 {[%emt 0:01:18]} 63. Rg8 {[%emt 0:01:01]} Kd4 {[%emt 0:01:03]} 64. Rxg5 {[%emt 0:00:07]} Ke4 {[%emt 0:00:00]} 65. Rf5 {[%emt 0:00:01]} (65. Kg3 $5) 65... Ra3 $1 {[%emt 0:00:05]} 66. Kg2 {[%emt 0:00:04]} Rb3 {[%emt 0:00:22]} 67. Rf8 {[%emt 0:00:12]} Ra3 {[%emt 0:00:16]} 68. Kh2 {[%emt 0:00:42]} Rb3 {[%emt 0:00:10]} 69. Rf2 {[%emt 0:00:16]} Ra3 {[%emt 0:00:31]} 70. g5 {[%emt 0:00:24]} Ra5 {[%emt 0:00:44]} 71. g6 {[%emt 0:01:32]} Rh5+ {[%emt 0:00:48]} 72. Kg1 {[%emt 0:00:07]} Rh8 $1 {[%emt 0:00:24]} 73. g7 {[%emt 0:01:09]} Rg8 {[%emt 0:01:40]} 74. Rf7 {[%emt 0:00:09]} Ke5 {[%emt 0:00:00]} 75. Kf2 {[%emt 0:00:08]} Ke6 {[%emt 0:00:00]} 76. Ra7 {[%emt 0:00:05]} Kf6 {[%emt 0:00:00]} 77. Kf3 {[%emt 0:00:04]} Rxg7 {[%emt 0:00:00]} 78. Rxg7 {[%emt 0:00:05]} Kxg7 {[%emt 0:00:00]} 79. Ke4 {[%emt 0:00:35]} 1/2-1/2

[Event "26th Triest Festival 2024"]
[Site "Triest"]
[Date "2024.09.02"]
[Round "3.12"]
[White "Papadiamandis, Elliot"]
[Black "Valsecchi, Alessio"]
[Result "1/2-1/2"]
[Annotator "RC"]
[ECO "C08"]
[WhiteElo "2329"]
[BlackElo "2475"]
[PlyCount "182"]
[EventDate "2024.09.02"]
[EventType "swiss"]
[EventCountry "ITA"]
[SourceTitle "playchess.com"]
[Source "ChessBase"]
[SourceQuality "1"]
[TimeControl "5400+30"]

1. e4 {[%emt 0:00:55]} e6 {[%emt 0:00:06]} 2. d4 {[%emt 0:01:11]} d5 {[%emt 0:00:05]} 3. Nd2 {[%emt 0:02:28]} a6 {[%emt 0:00:07]} 4. exd5 {[%emt 0:04:32]} exd5 {[%emt 0:00:07]} 5. Ngf3 {[%emt 0:00:28]} Nf6 {[%emt 0:00:13]} 6. Bd3 {[%emt 0:00:26]} c5 {[%emt 0:00:09]} 7. dxc5 {[%emt 0:01:50]} Bxc5 {[%emt 0:00:07]} 8. Nb3 {[%emt 0:00:11]} Be7 {[%emt 0:04:50]} 9. h3 {[%emt 0:04:10]} Nc6 {[%emt 0:00:08]} 10. O-O {[%emt 0:00:35]} O-O {[%emt 0:00:19]} 11. c3 {[%emt 0:07:15]} Ne4 {[%emt 0:00:07]} 12. Bf4 {[%emt 0:01:08]} Bf5 {[%emt 0:00:32]} 13. Nfd4 {[%emt 0:01:26]} Bg6 {[%emt 0:00:15]} 14. Bc2 {[%emt 0:04:34]} Rc8 {[%emt 0:00:21]} 15. Nxc6 {[%emt 0:02:19]} bxc6 {[%emt 0:01:47]} 16. Nd2 {[%emt 0:01:13]} Nc5 {[%emt 1:29:17]} 17. Nb3 {[%emt 0:03:21]} Ne6 {[%emt 0:00:00]} 18. Be3 {[%emt 0:02:41]} c5 {[%emt 0:00:00]} 19. Bxg6 {[%emt 0:03:53]} hxg6 {[%emt 0:00:00]} 20. Qf3 {[%emt 0:00:05]} d4 {[%emt 0:00:00]} 21. Rad1 {[%emt 0:03:36]} Bf6 {[%emt 0:00:00]} 22. Qg4 {[%emt 0:01:38]} Re8 {[%emt 0:00:00]} 23. Rd2 {[%emt 0:11:46]} Rc7 {[%emt 0:00:00]} 24. Rfd1 {[%emt 0:03:13]} Rce7 {[%emt 0:00:00]} 25. cxd4 {[%emt 0:05:05]} cxd4 {[%emt 0:00:00]} 26. Nxd4 {[%emt 0:01:51]} Nxd4 {[%emt 0:00:00]} 27. Bxd4 {[%emt 0:00:07]} Re1+ {[%emt 0:00:00]} 28. Kh2 {[%emt 0:12:18]} Qd6+ {[%emt 0:00:00]} 29. f4 {[%emt 0:06:17]} Rxd1 {[%emt 0:00:00]} 30. Qxd1 {[%emt 0:00:07]} Qxf4+ {[%emt 0:00:00]} 31. g3 {[%emt 0:00:11]} Qc7 {[%emt 0:00:00]} 32. Bxf6 {[%emt 0:00:09]} gxf6 {[%emt 0:00:00]} 33. Qf3 {[%emt 0:00:49]} f5 {[%emt 0:00:00]} 34. Re2 {[%emt 0:01:03]} Rd8 {[%emt 0:00:00]} 35. h4 {[%emt 0:03:51]} Qc1 {[%emt 0:00:00]} 36. Rf2 {[%emt 0:01:28]} Qb1 {[%emt 0:00:15]} 37. a3 {[%emt 0:01:12]} Qe4 {[%emt 0:02:36]} 38. Kg2 {[%emt 0:01:15]} Rd3 {[%emt 0:01:41]} 39. Qxe4 {[%emt 0:00:01]} fxe4 {[%emt 0:00:05]} 40. g4 {[%emt 0:00:20]} a5 {[%emt 0:05:06]} 41. g5 {[%emt 0:00:53]} a4 {[%emt 0:00:42]} 42. Re2 {[%emt 0:00:16]} Rd4 {[%emt 0:00:55]} 43. Kg3 {[%emt 0:01:06]} f5 {[%emt 0:00:51]} 44. gxf6 {[%emt 0:00:09]} Kf7 {[%emt 0:00:09]} 45. Re3 {[%emt 0:00:44]} Kxf6 {[%emt 0:00:35]} 46. Kf4 {[%emt 0:00:10]} Rd2 {[%emt 0:00:52]} 47. Rxe4 {[%emt 0:00:37]} Rf2+ {[%emt 0:00:34]} 48. Kg3 {[%emt 0:00:40]} Rxb2 {[%emt 0:00:08]} 49. Rxa4 {[%emt 0:00:25]} Kf5 {[%emt 0:01:12]} 50. Rf4+ {[%emt 0:00:20]} Ke5 {[%emt 0:00:23]} 51. Rf3 {[%emt 0:00:13]} Ke6 {[%emt 0:00:46]} 52. Kg4 {[%emt 0:00:18]} Rg2+ {[%emt 0:00:12]} 53. Rg3 {[%emt 0:00:07]} Rc2 {[%emt 0:00:18]} 54. Kg5 {[%emt 0:00:14]} Kf7 {[%emt 0:00:18]} 55. Kh6 {[%emt 0:02:01]} Rc4 {[%emt 0:00:10]} 56. Rf3+ {[%emt 0:00:49]} Kg8 {[%emt 0:00:09]} 57. Kg5 {[%emt 0:01:42]} Kg7 {[%emt 0:00:17]} 58. Rf4 {[%emt 0:00:10]} Rc1 {[%emt 0:01:27]} 59. Rb4 {[%emt 0:01:44]} Rg1+ {[%emt 0:00:17]} 60. Kf4 {[%emt 0:00:06]} Kf6 {[%emt 0:00:44]} 61. a4 {[%emt 0:00:27]} Ra1 {[%emt 0:01:01]} 62. Ke4 {[%emt 0:00:10]} Ke6 {[%emt 0:00:11]} 63. Kd4 {[%emt 0:00:48]} Kd6 {[%emt 0:00:07]} 64. Kc4 {[%emt 0:00:19]} Kc6 {[%emt 0:00:13]} 65. Kb3 {[%emt 0:00:06]} Rb1+ {[%emt 0:00:49]} 66. Kc3 {[%emt 0:00:22]} Rg1 {[%emt 0:00:45]} 67. Re4 {[%emt 0:01:11]} Kd5 {[%emt 0:00:11]} 68. Rf4 {[%emt 0:00:15]} Kc5 {[%emt 0:00:20]} 69. Kd3 {[%emt 0:01:16]} Kd5 {[%emt 0:00:10]} 70. a5 {[%emt 0:00:57]} Rg3+ {[%emt 0:01:30]} 71. Ke2 {[%emt 0:00:01]} Kc6 {[%emt 0:00:35]} 72. Ra4 {[%emt 0:00:13]} Kb7 {[%emt 0:00:35]} 73. a6+ {[%emt 0:00:09]} Ka7 {[%emt 0:00:04]} 74. Kf2 {[%emt 0:00:03]} Rc3 {[%emt 0:00:29]} 75. Kg2 {[%emt 0:00:49]} Rd3 {[%emt 0:00:57]} 76. Ra5 {[%emt 0:00:57]} Rc3 {[%emt 0:00:19]} 77. Ra2 {[%emt 0:00:30]} Rd3 {[%emt 0:00:05]} 78. Rc2 {[%emt 0:00:35]} Kxa6 {[%emt 0:00:46]} 79. Rc6+ {[%emt 0:00:01]} Kb7 {[%emt 0:00:05]} 80. Rxg6 {[%emt 0:00:06]} Kc7 {[%emt 0:00:08]} 81. h5 {[%emt 0:00:04]} Rd5 {[%emt 0:00:39]} 82. h6 {[%emt 0:00:05]} Rh5 {[%emt 0:00:25]} 83. Ra6 {[%emt 0:01:04]} Kb7 {[%emt 0:00:33]} 84. Rf6 {[%emt 0:02:05]} Kc7 {[%emt 0:00:05]} 85. Kg3 {[%emt 0:00:03]} Kd7 {[%emt 0:00:16]} 86. Kg4 {[%emt 0:01:06]} Ke7 {[%emt 0:00:12]} 87. Ra6 {[%emt 0:00:17]} Rh1 {[%emt 0:00:14]} 88. Kg5 {[%emt 0:01:03]} Kf7 {[%emt 0:00:08]} 89. Ra7+ {[%emt 0:00:23]} Kg8 {[%emt 0:00:06]} 90. h7+ {[%emt 0:00:05]} Rxh7 {[%emt 0:00:05]} 91. Rxh7 {[%emt 0:00:09]} Kxh7 {[%emt 0:00:32]} 1/2-1/2